[Event "Elitserien 2019/2020, round 7-9"]
[Site "Elite stadshotellet, Kungsgatan 6, Vaxjo, Sweden"]
[Date "2020.10.18"]
[Round "3.9"]
[White "Hauge, Lars Oskar"]
[Black "Solodovnichenko, Yuri"]
[Result "0-1"]
[TimeControl "90 minutes for 40 moves + 30 minutes for the rest of the game + 30 seconds per move from move one."]
[WhiteTitle "IM"]
[BlackTitle "GM"]
[WhiteFideId "1509276"]
[BlackFideId "14104369"]
[WhiteElo "2493"]
[BlackElo "2574"]

1. f4 {[%clk 01:28:07]} {[%emt 00:02:53]} d5 {[%clk 01:29:37]} {[%emt
00:01:23]} 2. Nf3 {[%clk 01:28:29]} {[%emt 00:00:08]} g6 {[%emt 00:00:59]} 3.
g3 {[%clk 01:27:34]} {[%emt 00:01:22]} Bg7 {[%clk 01:29:35]} {[%emt 00:00:07]}
4. Bg2 {[%clk 01:28:00]} {[%emt 00:00:03]} Nf6 {[%clk 01:29:39]} {[%emt
00:00:25]} 5. O-O {[%clk 01:27:40]} {[%emt 00:00:51]} O-O {[%clk 01:28:36]}
{[%emt 00:01:33]} 6. d3 {[%clk 01:28:04]} {[%emt 00:00:05]} c6 {[%clk
01:23:17]} {[%emt 00:05:49]} 7. e3 {[%clk 01:23:35]} {[%emt 00:04:58]} Qb6
{[%clk 01:15:37]} {[%emt 00:08:11]} 8. Qe2 {[%clk 01:22:34]} {[%emt 00:01:32]}
Bg4 {[%clk 01:13:43]} {[%emt 00:02:23]} 9. Kh1 {[%clk 01:20:19]} {[%emt
00:02:45]} Nbd7 {[%clk 01:12:38]} {[%emt 00:01:35]} 10. e4 {[%clk 01:18:38]}
{[%emt 00:02:11]} dxe4 {[%clk 01:07:56]} {[%emt 00:05:12]} 11. dxe4 {[%clk
01:19:00]} {[%emt 00:00:09]} e5 {[%clk 01:08:03]} {[%emt 00:00:23]} 12. Nc3
{[%clk 01:15:10]} {[%emt 00:04:20]} exf4 {[%clk 01:02:27]} {[%emt 00:06:06]} 13.
gxf4 {[%clk 01:14:02]} {[%emt 00:01:38]} Rae8 {[%clk 01:02:19]} {[%emt
00:00:38]} 14. e5 {[%clk 01:13:12]} {[%emt 00:01:20]} Nh5 {[%clk 00:58:31]}
{[%emt 00:04:18]} 15. Be3 {[%clk 01:05:33]} {[%emt 00:08:09]} Qxb2 {[%clk
00:55:18]} {[%emt 00:03:43]} 16. Ne4 {[%clk 00:55:55]} {[%emt 00:10:08]} Nxe5
{[%clk 00:29:56]} {[%emt 00:25:52]} 17. Rab1 {[%clk 00:47:50]} {[%emt
00:08:36]} Nxf3 {[%clk 00:28:30]} {[%emt 00:01:54]} 18. Rxb2 {[%clk 00:48:05]}
{[%emt 00:00:16]} Nxh2 {[%clk 00:28:41]} {[%emt 00:00:18]} 19. Qd3 {[%clk
00:36:28]} {[%emt 00:12:07]} Nxf1 {[%clk 00:28:27]} {[%emt 00:00:44]} 20. Bd4
{[%clk 00:35:21]} {[%emt 00:01:38]} Be2 {[%clk 00:11:33]} {[%emt 00:17:24]} 21.
Qc3 {[%clk 00:33:06]} {[%emt 00:02:45]} Rxe4 {[%clk 00:11:20]} {[%emt
00:00:43]} 22. Bxg7 {[%clk 00:33:26]} {[%emt 00:00:10]} Re3 {[%clk 00:11:27]}
{[%emt 00:00:23]} 23. Qc5 {[%clk 00:26:06]} {[%emt 00:07:51]} Kxg7 {[%clk
00:11:36]} {[%emt 00:00:21]} 24. Kg1 {[%clk 00:24:26]} {[%emt 00:02:10]} Rfe8
{[%clk 00:03:14]} {[%emt 00:08:52]} 25. Rxb7 {[%clk 00:22:48]} {[%emt
00:02:08]} Rg3 {[%clk 00:01:55]} {[%emt 00:01:49]} 26. Qd4+ {[%clk 00:18:57]}
{[%emt 00:04:21]} Nf6 {[%clk 00:00:55]} {[%emt 00:01:29]} 27. Kf2 {[%clk
00:16:56]} {[%emt 00:02:31]} Re6 {[%clk 00:00:41]} {[%emt 00:00:44]} 28. f5
{[%clk 00:11:24]} {[%emt 00:06:02]} gxf5 {[%clk 00:01:01]} {[%emt 00:00:10]} 29.
Bxf1 {[%clk 00:11:33]} {[%emt 00:00:21]} Rf3+ {[%clk 00:01:19]} {[%emt
00:00:12]} 30. Kg2 {[%emt 00:00:40]} Rxf1 {[%clk 00:01:12]} {[%emt 00:00:05]}
31. Qxa7 {[%clk 00:12:17]} {[%emt 00:00:09]} Nh5 {[%clk 00:00:32]} {[%emt
00:01:10]} 32. Qd4+ {[%clk 00:07:43]} {[%emt 00:05:04]} Kh6 {[%clk 00:00:33]}
{[%emt 00:00:29]} 33. Rxf7 {[%clk 00:07:15]} {[%emt 00:00:58]} Rg6+ {[%clk
00:00:47]} {[%emt 00:00:16]} 34. Kh2 {[%clk 00:07:39]} {[%emt 00:00:06]} Bf3
{[%clk 00:00:34]} {[%emt 00:00:44]} 35. Qd2+ {[%clk 00:04:33]} {[%emt
00:03:35]} f4 {[%clk 00:01:00]} {[%emt 00:00:04]} 0-1

[Event "Elitserien 2019/2020, round 7-9"]
[Site "Elite stadshotellet, Kungsgatan 6, Vaxjo, Sweden"]
[Date "2020.10.18"]
[Round "3.10"]
[White "Lindberg, Bengt"]
[Black "Seo, Jung Min"]
[Result "1/2-1/2"]
[TimeControl "90 minutes for 40 moves + 30 minutes for the rest of the game + 30 seconds per move from move one."]
[WhiteTitle "IM"]
[BlackTitle "FM"]
[WhiteFideId "1700359"]
[BlackFideId "1734687"]
[WhiteElo "2401"]
[BlackElo "2448"]

1. e4 {[%clk 01:30:57]} {[%emt 00:00:02]} c6 {[%clk 01:30:56]} {[%emt
00:00:05]} 2. d4 {[%clk 01:31:14]} {[%emt 00:00:12]} d5 {[%clk 01:31:24]}
{[%emt 00:00:02]} 3. Nc3 {[%clk 01:31:30]} {[%emt 00:00:14]} a6 {[%clk
01:28:21]} {[%emt 00:03:34]} 4. Nf3 {[%clk 01:29:32]} {[%emt 00:02:27]} dxe4
{[%clk 01:28:42]} {[%emt 00:00:11]} 5. Nxe4 {[%clk 01:29:53]} {[%emt 00:00:08]}
Nf6 {[%clk 01:29:08]} {[%emt 00:00:04]} 6. Nxf6+ {[%clk 01:26:19]} {[%emt
00:04:04]} exf6 {[%clk 01:29:33]} {[%emt 00:00:05]} 7. c3 {[%clk 01:20:46]}
{[%emt 00:06:01]} Bd6 {[%clk 01:29:39]} {[%emt 00:00:26]} 8. Bd3 {[%clk
01:19:58]} {[%emt 00:01:17]} Bg4 {[%clk 01:29:12]} {[%emt 00:00:56]} 9. Qe2+
{[%clk 01:17:53]} {[%emt 00:02:35]} Qe7 {[%clk 01:29:18]} {[%emt 00:00:25]} 10.
Qxe7+ {[%clk 01:16:21]} {[%emt 00:02:02]} Bxe7 {[%clk 01:29:15]} {[%emt
00:00:33]} 11. Nd2 {[%clk 01:15:17]} {[%emt 00:01:34]} Nd7 {[%clk 01:29:14]}
{[%emt 00:00:31]} 12. Nc4 {[%clk 01:11:43]} {[%emt 00:04:04]} a5 {[%clk
01:25:58]} {[%emt 00:03:47]} 13. O-O {[%clk 01:10:37]} {[%emt 00:01:35]} O-O
{[%clk 01:22:55]} {[%emt 00:03:34]} 14. Bf4 {[%clk 01:00:30]} {[%emt 00:10:36]}
Be6 {[%clk 01:22:33]} {[%emt 00:00:53]} 15. Rfe1 {[%clk 00:57:56]} {[%emt
00:03:03]} Rfd8 {[%clk 01:16:24]} {[%emt 00:06:40]} 16. Bc7 {[%clk 00:38:10]}
{[%emt 00:20:16]} Re8 {[%clk 00:59:46]} {[%emt 00:17:08]} 17. a4 {[%clk
00:31:30]} {[%emt 00:07:09]} Bd8 {[%clk 00:56:47]} {[%emt 00:03:30]} 18. Bg3
{[%clk 00:30:37]} {[%emt 00:01:21]} Be7 {[%clk 00:56:19]} {[%emt 00:00:59]} 19.
Nd6 {[%clk 00:20:28]} {[%emt 00:10:39]} Bxd6 {[%clk 00:56:32]} {[%emt
00:00:18]} 20. Bxd6 {[%clk 00:20:54]} {[%emt 00:00:04]} Nb6 {[%clk 00:56:29]}
{[%emt 00:00:32]} 21. Bc5 {[%clk 00:21:06]} {[%emt 00:00:18]} Nd7 {[%clk
00:56:51]} {[%emt 00:00:08]} 22. b4 {[%clk 00:16:44]} {[%emt 00:04:51]} axb4
{[%clk 00:54:37]} {[%emt 00:02:45]} 23. cxb4 {[%clk 00:15:01]} {[%emt
00:02:13]} Nxc5 {[%clk 00:54:10]} {[%emt 00:00:56]} 24. dxc5 {[%clk 00:14:19]}
{[%emt 00:01:12]} Red8 {[%clk 00:54:09]} {[%emt 00:00:31]} 25. Bf1 {[%clk
00:11:53]} {[%emt 00:02:56]} Rd4 {[%clk 00:53:58]} {[%emt 00:00:41]} 26. Reb1
{[%clk 00:12:14]} {[%emt 00:00:09]} Kf8 {[%clk 00:53:43]} {[%emt 00:00:46]} 27.
a5 {[%clk 00:11:34]} {[%emt 00:01:10]} g6 {[%clk 00:51:19]} {[%emt 00:02:54]}
28. f3 {[%clk 00:10:30]} {[%emt 00:01:33]} f5 {[%clk 00:50:40]} {[%emt
00:01:10]} 29. b5 {[%clk 00:08:29]} {[%emt 00:02:31]} cxb5 {[%clk 00:50:59]}
{[%emt 00:00:11]} 30. Rxb5 {[%clk 00:08:50]} {[%emt 00:00:09]} Rd7 {[%clk
00:47:40]} {[%emt 00:03:49]} 31. Kf2 {[%clk 00:04:06]} {[%emt 00:05:13]} Ke7
{[%clk 00:45:44]} {[%emt 00:02:27]} 32. f4 {[%clk 00:02:24]} {[%emt 00:02:12]}
Rc7 {[%clk 00:45:07]} {[%emt 00:01:07]} 33. Rb6 {[%clk 00:02:10]} {[%emt
00:00:44]} Ra7 {[%clk 00:44:15]} {[%emt 00:01:23]} 34. a6 {[%clk 00:00:46]}
{[%emt 00:01:54]} bxa6 {[%clk 00:44:40]} {[%emt 00:00:05]} 35. Rbxa6 {[%clk
00:00:42]} {[%emt 00:00:34]} Rxa6 {[%clk 00:45:02]} {[%emt 00:00:08]} 36. Rxa6
{[%clk 00:01:03]} {[%emt 00:00:08]} Rxc5 {[%clk 00:45:30]} {[%emt 00:00:02]} 37.
Ra1 {[%clk 00:00:51]} {[%emt 00:00:42]} Rc2+ {[%clk 00:45:54]} {[%emt
00:00:06]} 38. Kg1 {[%clk 00:01:13]} {[%emt 00:00:08]} h5 {[%clk 00:46:16]}
{[%emt 00:00:08]} 39. h4 {[%clk 00:01:25]} {[%emt 00:00:18]} Rd2 {[%clk
00:46:05]} {[%emt 00:00:41]} 40. Re1 {[%clk 00:01:14]} {[%emt 00:00:40]} Kd6
{[%clk 00:44:53]} {[%emt 00:01:43]} 41. Re3 {[%clk 00:25:23]} {[%emt 00:06:20]}
Kc5 {[%clk 01:13:09]} {[%emt 00:02:14]} 42. Rd3 {[%clk 00:24:36]} {[%emt
00:01:17]} Rb2 {[%clk 01:13:12]} {[%emt 00:00:28]} 43. Rd1 {[%clk 00:24:48]}
{[%emt 00:00:16]} Rc2 {[%clk 01:11:05]} {[%emt 00:02:36]} 44. Bd3 {[%clk
00:23:21]} {[%emt 00:01:59]} Ra2 {[%clk 01:11:18]} {[%emt 00:00:16]} 45. Bf1
{[%clk 00:23:44]} {[%emt 00:00:07]} Rb2 {[%clk 01:10:59]} {[%emt 00:00:49]} 46.
Kh2 {[%clk 00:17:18]} {[%emt 00:06:56]} Bd5 {[%clk 01:09:18]} {[%emt 00:02:11]}
47. Kg3 {[%clk 00:17:40]} {[%emt 00:00:08]} Rc2 {[%clk 01:07:58]} {[%emt
00:01:50]} 48. Re1 {[%clk 00:17:28]} {[%emt 00:00:42]} Rc3+ {[%clk 01:07:53]}
{[%emt 00:00:35]} 49. Kf2 {[%clk 00:17:53]} {[%emt 00:00:05]} Kd4 {[%clk
01:06:50]} {[%emt 00:01:34]} 50. Be2 {[%clk 00:16:32]} {[%emt 00:01:50]} Rc2
{[%clk 01:06:20]} {[%emt 00:01:01]} 51. Kg3 {[%clk 00:10:28]} {[%emt 00:06:34]}
Rc3+ {[%clk 01:05:25]} {[%emt 00:01:26]} 52. Bf3 {[%clk 00:10:49]} {[%emt
00:00:08]} Be6 {[%clk 01:05:40]} {[%emt 00:00:16]} 53. Rd1+ {[%clk 00:10:28]}
{[%emt 00:00:51]} Kc5 {[%clk 01:06:05]} {[%emt 00:00:05]} 54. Kf2 {[%clk
00:10:23]} {[%emt 00:00:35]} Rc4 {[%clk 01:06:16]} {[%emt 00:00:19]} 55. Ke3
{[%clk 00:10:27]} {[%emt 00:00:25]} Rc2 {[%clk 01:06:36]} {[%emt 00:00:10]} 56.
Ra1 {[%clk 00:10:11]} {[%emt 00:00:45]} Kd6 {[%clk 01:06:30]} {[%emt 00:00:36]}
57. Ra6+ {[%clk 00:10:16]} {[%emt 00:00:25]} Ke7 {[%clk 01:06:56]} {[%emt
00:00:04]} 58. Ra7+ {[%clk 00:10:29]} {[%emt 00:00:17]} Kf6 {[%clk 01:07:21]}
{[%emt 00:00:05]} 59. Ra1 {[%clk 00:10:28]} {[%emt 00:00:30]} Kg7 {[%clk
01:07:42]} {[%emt 00:00:10]} 60. Kd3 {[%clk 00:10:28]} {[%emt 00:00:29]} Rb2
{[%clk 01:08:03]} {[%emt 00:00:09]} 61. Ke3 {[%clk 00:10:37]} {[%emt 00:00:21]}
Rb4 {[%clk 01:08:12]} {[%emt 00:00:22]} 62. Rc1 {[%clk 00:10:44]} {[%emt
00:00:22]} Ra4 {[%clk 01:08:29]} {[%emt 00:00:15]} 63. Rb1 {[%clk 00:11:00]}
{[%emt 00:00:12]} Ra7 {[%clk 01:08:44]} {[%emt 00:00:16]} 64. Kf2 {[%clk
00:11:12]} {[%emt 00:00:17]} Bc4 {[%clk 01:08:47]} {[%emt 00:00:28]} 65. Rb4
{[%clk 00:10:08]} {[%emt 00:01:34]} Ra2+ {[%clk 01:08:54]} {[%emt 00:00:24]} 66.
Ke3 {[%clk 00:09:42]} {[%emt 00:00:56]} Bf1 {[%clk 01:08:55]} {[%emt 00:00:30]}
67. g3 {[%clk 00:10:03]} {[%emt 00:00:09]} Ra5 {[%clk 00:55:58]} {[%emt
00:15:52]} 68. Rd4 {[%clk 00:09:30]} Bb5 {[%clk 00:53:31]} {[%emt 00:01:34]} 69.
Rb4 {[%clk 00:09:12]} {[%emt 00:00:48]} Bd7 {[%clk 00:52:42]} {[%emt 00:01:20]}
70. Rd4 {[%clk 00:09:05]} {[%emt 00:00:36]} Be6 {[%clk 00:53:03]} {[%emt
00:00:09]} 71. Kf2 {[%clk 00:08:43]} {[%emt 00:00:52]} Ra2+ {[%clk 00:53:15]}
{[%emt 00:00:19]} 72. Ke3 {[%clk 00:09:03]} {[%emt 00:00:10]} Kf6 {[%clk
00:53:33]} {[%emt 00:00:13]} 73. Rd2 {[%clk 00:09:01]} {[%emt 00:00:32]} Ra1
{[%clk 00:53:53]} {[%emt 00:00:08]} 74. Rd1 {[%clk 00:09:16]} {[%emt 00:00:16]}
Ra7 {[%clk 00:54:14]} {[%emt 00:00:09]} 75. Rd2 {[%clk 00:09:37]} {[%emt
00:00:09]} Bc4 {[%clk 00:54:34]} {[%emt 00:00:10]} 76. Rd4 {[%clk 00:09:48]}
{[%emt 00:00:19]} Bf1 {[%clk 00:54:39]} {[%emt 00:00:24]} 77. Rd1 {[%clk
00:09:56]} {[%emt 00:00:23]} Bh3 {[%clk 00:54:50]} {[%emt 00:00:19]} 78. Rd6+
{[%clk 00:09:25]} {[%emt 00:01:00]} Kg7 {[%clk 00:54:45]} {[%emt 00:00:35]} 79.
Rb6 {[%clk 00:09:22]} {[%emt 00:00:34]} Bg4 {[%clk 00:54:36]} {[%emt 00:00:38]}
80. Bxg4 {[%clk 00:08:41]} {[%emt 00:01:12]} fxg4 {[%clk 00:54:41]} {[%emt
00:00:25]} 81. Kf2 {[%clk 00:09:06]} {[%emt 00:00:04]} Ra2+ {[%clk 00:55:06]}
{[%emt 00:00:06]} 82. Kg1 {[%clk 00:09:31]} {[%emt 00:00:04]} Re2 {[%clk
00:55:25]} {[%emt 00:00:11]} 83. Ra6 {[%clk 00:09:54]} {[%emt 00:00:08]} Kf8
{[%clk 00:54:54]} {[%emt 00:01:01]} 84. Ra7 {[%clk 00:10:17]} {[%emt 00:00:07]}
Ke8 {[%clk 00:54:24]} {[%emt 00:00:59]} 85. Rb7 {[%clk 00:10:38]} {[%emt
00:00:09]} Rd2 {[%clk 00:54:49]} {[%emt 00:00:06]} 86. Ra7 {[%clk 00:10:53]}
{[%emt 00:00:15]} Rd7 {[%clk 00:55:16]} {[%emt 00:00:02]} 87. Ra5 {[%clk
00:11:05]} {[%emt 00:00:18]} Rd3 {[%clk 00:55:04]} {[%emt 00:00:42]} 88. Kg2
{[%clk 00:11:28]} {[%emt 00:00:07]} f5 {[%clk 00:55:08]} {[%emt 00:00:26]} 89.
Ra6 {[%clk 00:11:44]} {[%emt 00:00:14]} Kf7 {[%clk 00:55:35]} {[%emt 00:00:03]}
90. Rb6 {[%clk 00:12:04]} {[%emt 00:00:10]} Re3 {[%clk 00:56:00]} {[%emt
00:00:05]} 91. Ra6 {[%clk 00:12:18]} {[%emt 00:00:17]} Re6 {[%clk 00:56:24]}
{[%emt 00:00:06]} 92. Ra2 {[%clk 00:11:47]} {[%emt 00:01:01]} Ke7 {[%clk
00:56:38]} {[%emt 00:00:16]} 93. Kf2 {[%clk 00:10:45]} {[%emt 00:01:31]} Kd6
{[%clk 00:56:49]} {[%emt 00:00:20]} 94. Ra6+ {[%clk 00:09:19]} {[%emt
00:01:56]} Kd5 {[%clk 00:57:18]} {[%emt 00:00:02]} 95. Ra5+ {[%clk 00:09:38]}
{[%emt 00:00:10]} Kc4 {[%clk 00:57:31]} {[%emt 00:00:14]} 96. Ra4+ {[%clk
00:10:01]} {[%emt 00:00:09]} Kb5 {[%clk 00:57:55]} {[%emt 00:00:06]} 97. Ra1
{[%clk 00:09:14]} {[%emt 00:01:17]} Re4 {[%clk 00:57:34]} {[%emt 00:00:52]} 98.
Ra8 {[%clk 00:08:46]} {[%emt 00:00:58]} Rd4 {[%clk 00:57:32]} {[%emt 00:00:31]}
99. Rg8 {[%clk 00:06:42]} {[%emt 00:02:35]} Rd2+ {[%clk 00:57:41]} {[%emt
00:00:21]} 100. Kf1 {[%clk 00:06:48]} {[%emt 00:00:23]} Rd6 {[%clk 00:58:01]}
{[%emt 00:00:11]} 101. Ke2 {[%clk 00:06:55]} {[%emt 00:00:23]} Kc4 {[%clk
00:58:12]} {[%emt 00:00:20]} 102. Ra8 {[%clk 00:06:22]} {[%emt 00:01:03]} Rb6
{[%clk 00:58:11]} {[%emt 00:00:32]} 103. Rc8+ {[%clk 00:05:39]} {[%emt
00:01:12]} Kd5 {[%clk 00:58:32]} {[%emt 00:00:08]} 104. Rd8+ {[%clk 00:05:53]}
{[%emt 00:00:17]} Rd6 {[%clk 00:58:56]} {[%emt 00:00:06]} 105. Ra8 {[%clk
00:06:15]} {[%emt 00:00:09]} Ke4 {[%clk 00:59:08]} {[%emt 00:00:18]} 106. Ra4+
{[%clk 00:06:22]} {[%emt 00:00:23]} Rd4 {[%clk 00:59:33]} {[%emt 00:00:03]} 107.
Ra3 {[%clk 00:06:33]} {[%emt 00:00:20]} Rc4 {[%clk 00:59:20]} {[%emt 00:00:42]}
108. Re3+ {[%clk 00:06:26]} {[%emt 00:00:37]} Kd4 {[%clk 00:59:45]} {[%emt
00:00:05]} 109. Rd3+ {[%clk 00:06:49]} {[%emt 00:00:08]} Kc5 {[%clk 01:00:13]}
{[%emt 00:00:02]} 110. Rd2 {[%clk 00:05:49]} {[%emt 00:01:30]} Rc3 {[%clk
01:00:19]} {[%emt 00:00:24]} 111. Kf2 {[%clk 00:06:13]} {[%emt 00:00:06]} Kc4
{[%clk 01:00:31]} {[%emt 00:00:20]} 112. Rd6 {[%clk 00:05:17]} {[%emt
00:01:24]} Rc2+ {[%clk 01:00:41]} {[%emt 00:00:20]} 113. Kf1 {[%clk 00:05:10]}
{[%emt 00:00:37]} Kc5 {[%clk 00:59:14]} {[%emt 00:01:57]} 114. Rd8 {[%clk
00:04:47]} {[%emt 00:00:54]} Ra2 {[%clk 00:59:29]} {[%emt 00:00:13]} 115. Rd7
{[%clk 00:05:05]} {[%emt 00:00:13]} Kc4 {[%clk 00:59:36]} {[%emt 00:00:22]} 116.
Rd6 {[%clk 00:05:21]} {[%emt 00:00:15]} Kc5 {[%clk 01:00:01]} {[%emt 00:00:06]}
117. Rd8 {[%clk 00:05:42]} {[%emt 00:00:09]} Rb2 {[%clk 01:00:14]} {[%emt
00:00:17]} 118. Rd7 {[%clk 00:06:00]} {[%emt 00:00:12]} Rb6 {[%clk 01:00:36]}
{[%emt 00:00:08]} 119. Rd1 {[%clk 00:05:36]} {[%emt 00:00:54]} Rb4 {[%clk
01:00:03]} {[%emt 00:00:36]} 120. Rd3 {[%clk 00:05:09]} {[%emt 00:01:23]} Rd4
{[%clk 01:00:21]} {[%emt 00:00:13]} 121. Rc3+ {[%clk 00:05:19]} {[%emt
00:00:20]} Kd5 {[%clk 01:00:34]} {[%emt 00:00:18]} 122. Re3 {[%clk 00:05:34]}
{[%emt 00:00:14]} Rd2 {[%clk 01:00:52]} {[%emt 00:00:11]} 123. Re8 {[%clk
00:05:49]} {[%emt 00:00:16]} Kd4 {[%clk 01:01:05]} {[%emt 00:00:17]} 124. Re7
{[%clk 00:06:01]} {[%emt 00:00:18]} Kd3 {[%clk 01:01:13]} {[%emt 00:00:19]} 125.
Re8 {[%clk 00:06:02]} {[%emt 00:00:32]} Ra2 {[%clk 01:00:55]} {[%emt 00:00:49]}
126. Re7 {[%clk 00:06:13]} {[%emt 00:00:19]} Ra4 {[%clk 01:01:19]} {[%emt
00:00:06]} 127. Kf2 {[%clk 00:06:32]} {[%emt 00:00:10]} Ra2+ {[%clk 01:00:38]}
{[%emt 00:01:11]} 128. Kf1 {[%clk 00:06:56]} {[%emt 00:00:06]} Rc2 {[%clk
01:01:01]} {[%emt 00:00:06]} 129. Re6 {[%clk 00:07:11]} {[%emt 00:00:16]} Rc4
{[%clk 01:01:18]} {[%emt 00:00:13]} 130. Kf2 {[%clk 00:07:32]} {[%emt
00:00:09]} Rc2+ {[%clk 01:01:27]} {[%emt 00:00:22]} 131. Kf1 {[%clk 00:07:57]}
{[%emt 00:00:04]} Rb2 {[%clk 01:01:52]} {[%emt 00:00:05]} 132. Re7 {[%clk
00:08:02]} {[%emt 00:00:24]} Rh2 {[%clk 01:01:59]} {[%emt 00:00:23]} 133. Re6
{[%clk 00:07:52]} {[%emt 00:00:41]} Ra2 {[%clk 01:02:22]} {[%emt 00:00:08]} 134.
Re7 {[%clk 00:08:05]} {[%emt 00:00:17]} Ra4 {[%clk 01:02:45]} {[%emt 00:00:07]}
135. Kf2 {[%clk 00:08:11]} {[%emt 00:00:24]} Ra6 {[%clk 01:02:58]} {[%emt
00:00:17]} 136. Re8 {[%clk 00:08:06]} {[%emt 00:00:35]} Ra2+ {[%clk 01:03:19]}
{[%emt 00:00:09]} 137. Kf1 {[%clk 00:08:31]} {[%emt 00:00:06]} Ra4 {[%clk
01:03:46]} {[%emt 00:00:02]} 1/2-1/2

[Event "Elitserien 2019/2020, round 7-9"]
[Site "Elite stadshotellet, Kungsgatan 6, Vaxjo, Sweden"]
[Date "2020.10.18"]
[Round "3.11"]
[White "Westerberg, Jonathan"]
[Black "Golubka, Petro"]
[Result "1/2-1/2"]
[TimeControl "90 minutes for 40 moves + 30 minutes for the rest of the game + 30 seconds per move from move one."]
[WhiteTitle "IM"]
[BlackTitle "GM"]
[WhiteFideId "1701754"]
[BlackFideId "14114224"]
[WhiteElo "2556"]
[BlackElo "2490"]

1. Nf3 {[%clk 01:30:32]} {[%emt 00:00:27]} b6 {[%clk 01:27:04]} {[%emt
00:03:58]} 2. g3 {[%clk 01:29:27]} {[%emt 00:01:34]} Bb7 {[%clk 01:27:04]}
{[%emt 00:00:29]} 3. Bg2 {[%clk 01:29:50]} {[%emt 00:00:07]} g6 {[%clk
01:26:44]} {[%emt 00:00:51]} 4. O-O {[%clk 01:29:41]} {[%emt 00:00:38]} Bg7
{[%clk 01:26:57]} {[%emt 00:00:18]} 5. c4 {[%clk 01:28:13]} {[%emt 00:01:57]}
f5 {[%clk 01:25:47]} {[%emt 00:01:41]} 6. d4 {[%clk 01:25:39]} {[%emt
00:03:02]} Nf6 {[%clk 01:26:05]} {[%emt 00:00:14]} 7. Nc3 {[%clk 01:21:45]}
{[%emt 00:04:23]} Ne4 {[%clk 01:25:34]} {[%emt 00:01:02]} 8. Nxe4 {[%clk
01:21:09]} {[%emt 00:01:05]} Bxe4 {[%clk 01:22:29]} {[%emt 00:03:35]} 9. Ng5
{[%clk 01:16:17]} {[%emt 00:05:22]} Bxg2 {[%clk 01:22:20]} {[%emt 00:00:40]} 10.
Kxg2 {[%clk 01:16:43]} {[%emt 00:00:04]} O-O {[%clk 01:20:54]} {[%emt
00:01:55]} 11. Nf3 {[%clk 01:14:40]} {[%emt 00:02:33]} Nc6 {[%clk 01:19:16]}
{[%emt 00:02:07]} 12. Bf4 {[%clk 01:13:29]} {[%emt 00:01:40]} Nxd4 {[%clk
01:16:29]} {[%emt 00:03:19]} 13. Nxd4 {[%clk 01:13:03]} {[%emt 00:00:56]} e5
{[%clk 01:16:56]} {[%emt 00:00:04]} 14. Nxf5 {[%clk 01:10:44]} {[%emt
00:02:48]} Rxf5 {[%clk 01:12:48]} {[%emt 00:04:39]} 15. Qd5+ {[%clk 01:09:32]}
{[%emt 00:01:40]} Kh8 {[%clk 01:05:59]} {[%emt 00:07:20]} 16. e4 {[%clk
01:08:49]} {[%emt 00:01:14]} Rxf4 {[%clk 00:57:37]} {[%emt 00:08:53]} 17. gxf4
{[%clk 01:09:00]} {[%emt 00:00:17]} exf4 {[%clk 00:58:03]} {[%emt 00:00:05]} 18.
Rad1 {[%clk 01:01:59]} {[%emt 00:07:29]} d6 {[%clk 00:49:44]} {[%emt 00:08:51]}
19. Rd2 {[%clk 00:57:09]} {[%emt 00:05:15]} Be5 {[%clk 00:49:20]} {[%emt
00:00:58]} 20. f3 {[%clk 00:56:39]} {[%emt 00:01:01]} a5 {[%clk 00:47:15]}
{[%emt 00:02:35]} 21. a4 {[%clk 00:56:00]} {[%emt 00:01:08]} Qg5+ {[%clk
00:46:22]} {[%emt 00:01:23]} 22. Kh1 {[%clk 00:54:10]} {[%emt 00:02:20]} Rf8
{[%clk 00:44:15]} {[%emt 00:02:37]} 23. Qe6 {[%clk 00:53:21]} {[%emt 00:01:16]}
Kg7 {[%clk 00:43:50]} {[%emt 00:00:59]} 24. Rg2 {[%clk 00:47:20]} {[%emt
00:06:31]} Qh5 {[%clk 00:39:55]} {[%emt 00:04:25]} 25. b3 {[%clk 00:44:32]}
{[%emt 00:03:18]} Rf7 {[%clk 00:38:21]} {[%emt 00:02:04]} 26. Rd2 {[%clk
00:41:21]} {[%emt 00:03:38]} Rf6 {[%clk 00:36:03]} {[%emt 00:02:50]} 1/2-1/2